{"text_format":"3","workbook":"xlsx","n_sheets":2,"sheets":["รายการ"," ข้อมูลรายการ"],"not_rendered":{"defined_names":6},"read":"whole","date_system":"1900"}

{"sheet":"รายการ","index":0,"n_rows":10,"n_cols":10,"rows_kept":10,"merged":[[0,1,0,2],[0,4,0,8],[2,9,6,9]]}
[null,"  รายการ",null,"ข้อมูลรายการ","คำอธิบายแผนภูมิสีสำหรับสถานะที่อยู่ในเซลล์นี้: ยังไม่เริ่มต้น เป็นสไตล์ปกติ กำลังดำเนินการ เป็น R=91 G=133 B=49 ครบกำหนดวันนี้ เป็น R=118 G=88 B=0 ถูกระงับ เป็น R=109 G=66 B=111 เสร็จสมบูรณ์แล้ว เป็นถูกขีดทับ ยกเลิกแล้ว เป็น R=191 G=191 B=191 และเกินกำหนด เป็น R=191 G=33 B=28"]
[null,"รายการ","ประเภท","วันที่เริ่มต้น","วันครบกำหนด","วันที่เหลือ","สถานะ","หมายเหตุ"]
[null,"ล้างลิ้นชัก","สำนักงาน",{"$f":"DATE(YEAR(TODAY()),MONTH(TODAY())-1,6)","v":"2018-04-06"},{"$f":"DATE(YEAR(TODAY()),MONTH(TODAY())-1,16)","v":"2018-04-16"},{"$f":"IFERROR(IF(COUNT(รายการ[[#This Row],[วันที่เริ่มต้น]]:รายการ[[#This Row],[วันครบกำหนด]])<>2,\"\",IF(OR(รายการ[[#This Row],[สถานะ]]=\"เสร็จสมบูรณ์แล้ว\",รายการ[[#This Row],[สถานะ]]=\"ยกเลิกแล้ว\",รายการ[[#This Row],[สถานะ]]=\"ถูกระงับ\"),\"\",รายการ[[#This Row],[วันครบกำหนด]]-TODAY())),\"\")","v":""},"เสร็จสมบูรณ์แล้ว",null,null,"ตัวแบ่งส่วนข้อมูลสถานะอยู่ในเซลล์นี้ เมื่อต้องการกรองรายการตามสถานะ ให้เลือกสถานะจากตัวแบ่งส่วนข้อมูล กด CTRL ค้างไว้เพื่อเลือกหลายตัวเลือก"]
[null,"สั่งซื้อสติกเกอร์","อุปกรณ์ต่างๆ",{"$f":"DATE(YEAR(TODAY()),MONTH(TODAY())-1,11)","v":"2018-04-11"},{"$f":"DATE(YEAR(TODAY()),MONTH(TODAY())-1,21)","v":"2018-04-21"},{"$f":"IFERROR(IF(COUNT(รายการ[[#This Row],[วันที่เริ่มต้น]]:รายการ[[#This Row],[วันครบกำหนด]])<>2,\"\",IF(OR(รายการ[[#This Row],[สถานะ]]=\"เสร็จสมบูรณ์แล้ว\",รายการ[[#This Row],[สถานะ]]=\"ยกเลิกแล้ว\",รายการ[[#This Row],[สถานะ]]=\"ถูกระงับ\"),\"\",รายการ[[#This Row],[วันครบกำหนด]]-TODAY())),\"\")","v":""},"เสร็จสมบูรณ์แล้ว"]
[null,"ถูพื้นและเคลือบพื้น","อื่นๆ",{"$f":"DATE(YEAR(TODAY()),MONTH(TODAY()-1),DAY(TODAY())-25)","v":"2018-04-16"},{"$f":"DATE(YEAR(TODAY()),MONTH(TODAY())-1,26)","v":"2018-04-26"},{"$f":"IFERROR(IF(COUNT(รายการ[[#This Row],[วันที่เริ่มต้น]]:รายการ[[#This Row],[วันครบกำหนด]])<>2,\"\",IF(OR(รายการ[[#This Row],[สถานะ]]=\"เสร็จสมบูรณ์แล้ว\",รายการ[[#This Row],[สถานะ]]=\"ยกเลิกแล้ว\",รายการ[[#This Row],[สถานะ]]=\"ถูกระงับ\"),\"\",รายการ[[#This Row],[วันครบกำหนด]]-TODAY())),\"\")","v":""},"เสร็จสมบูรณ์แล้ว"]
[null,"ตั้งชื่อป้ายชื่อที่สร้าง","อุปกรณ์ต่างๆ",{"$f":"DATE(YEAR(TODAY()),MONTH(TODAY())-1,21)","v":"2018-04-21"},{"$f":"DATE(YEAR(TODAY()),MONTH(TODAY())-1,1)","v":"2018-04-01"},{"$f":"IFERROR(IF(COUNT(รายการ[[#This Row],[วันที่เริ่มต้น]]:รายการ[[#This Row],[วันครบกำหนด]])<>2,\"\",IF(OR(รายการ[[#This Row],[สถานะ]]=\"เสร็จสมบูรณ์แล้ว\",รายการ[[#This Row],[สถานะ]]=\"ยกเลิกแล้ว\",รายการ[[#This Row],[สถานะ]]=\"ถูกระงับ\"),\"\",รายการ[[#This Row],[วันครบกำหนด]]-TODAY())),\"\")","v":""},"ถูกระงับ"]
[null,"ให้คะแนนรายงานที่เขียนประจำไตรมาส","การประเมิน",{"$f":"DATE(YEAR(TODAY()),MONTH(TODAY())-1,26)","v":"2018-04-26"},{"$f":"TODAY()-5","v":"2018-05-06"},{"$f":"IFERROR(IF(COUNT(รายการ[[#This Row],[วันที่เริ่มต้น]]:รายการ[[#This Row],[วันครบกำหนด]])<>2,\"\",IF(OR(รายการ[[#This Row],[สถานะ]]=\"เสร็จสมบูรณ์แล้ว\",รายการ[[#This Row],[สถานะ]]=\"ยกเลิกแล้ว\",รายการ[[#This Row],[สถานะ]]=\"ถูกระงับ\"),\"\",รายการ[[#This Row],[วันครบกำหนด]]-TODAY())),\"\")","v":-5},"เกินกำหนด"]
[null,"ตัวเตือนอีเมลสำหรับใบอนุญาต","การติดต่อทางโทรศัพท์",{"$f":"DATE(YEAR(TODAY()),MONTH(TODAY()),1)","v":"2018-05-01"},{"$f":"TODAY()","v":"2018-05-11"},{"$f":"IFERROR(IF(COUNT(รายการ[[#This Row],[วันที่เริ่มต้น]]:รายการ[[#This Row],[วันครบกำหนด]])<>2,\"\",IF(OR(รายการ[[#This Row],[สถานะ]]=\"เสร็จสมบูรณ์แล้ว\",รายการ[[#This Row],[สถานะ]]=\"ยกเลิกแล้ว\",รายการ[[#This Row],[สถานะ]]=\"ถูกระงับ\"),\"\",รายการ[[#This Row],[วันครบกำหนด]]-TODAY())),\"\")","v":""},"ยกเลิกแล้ว"]
[null,"ให้คะแนนรายงานการพูด","สำนักงาน",{"$f":"DATE(YEAR(TODAY()),MONTH(TODAY()),7)","v":"2018-05-07"},{"$f":"DATE(YEAR(TODAY()),MONTH(TODAY()),17)","v":"2018-05-17"},{"$f":"IFERROR(IF(COUNT(รายการ[[#This Row],[วันที่เริ่มต้น]]:รายการ[[#This Row],[วันครบกำหนด]])<>2,\"\",IF(OR(รายการ[[#This Row],[สถานะ]]=\"เสร็จสมบูรณ์แล้ว\",รายการ[[#This Row],[สถานะ]]=\"ยกเลิกแล้ว\",รายการ[[#This Row],[สถานะ]]=\"ถูกระงับ\"),\"\",รายการ[[#This Row],[วันครบกำหนด]]-TODAY())),\"\")","v":6},"กำลังดำเนินการ"]
[null,"เหลาดินสอ","อุปกรณ์ต่างๆ",{"$f":"DATE(YEAR(TODAY()),MONTH(TODAY()),11)","v":"2018-05-11"},{"$f":"DATE(YEAR(TODAY()),MONTH(TODAY()),10)","v":"2018-05-10"},{"$f":"IFERROR(IF(COUNT(รายการ[[#This Row],[วันที่เริ่มต้น]]:รายการ[[#This Row],[วันครบกำหนด]])<>2,\"\",IF(OR(รายการ[[#This Row],[สถานะ]]=\"เสร็จสมบูรณ์แล้ว\",รายการ[[#This Row],[สถานะ]]=\"ยกเลิกแล้ว\",รายการ[[#This Row],[สถานะ]]=\"ถูกระงับ\"),\"\",รายการ[[#This Row],[วันครบกำหนด]]-TODAY())),\"\")","v":-1},"กำลังดำเนินการ"]

{"sheet":" ข้อมูลรายการ","index":1,"n_rows":13,"n_cols":3,"rows_kept":13}
[null,"  ข้อมูลรายการ","รายการ"]
[null,"ประเภท"]
[null,"สำนักงาน"]
[null,"อุปกรณ์ต่างๆ"]
[null,"สิ่งที่ต้องซื้อ"]
[null,"การติดต่อทางโทรศัพท์"]
[null,"ความคิดใหม่ๆ"]
[null,"การประเมิน"]
[null,"ทีม"]
[null,"การแทรกแซง"]
[null,"คอมพิวเตอร์"]
[null,"ส่วนบุคคล"]
[null,"อื่นๆ"]